bitfinex/quotes_SOLUSD_20251206
["timestamp","ask_amount","ask_price","bid_price","bid_amount"]
[1765010338800,5.37724511,132.41,132.37,9.48994492]
[1765010338996,0.58,132.4,132.37,8.80994492]
[1765010339178,5.37724511,132.4,132.37,8.80994492]
[1765010339378,4.79724511,132.39,132.35,62.95568095]
[1765010339705,5.37724511,132.39,132.35,63.63568095]
[1765010340198,4.79724511,132.39,132.35,63.63568095]
[1765010340401,0.58,132.38,132.35,63.63568095]
[1765010340590,4.79724511,132.39,132.35,63.63568095]
[1765010340591,5.37724511,132.39,132.36,0.68]
[1765010341880,5.37724511,132.39,132.35,68.43292606]
[1765010342281,5.37724511,132.39,132.35,63.63568095]
[1765010342487,5.37724511,132.39,132.35,68.43292606]
[1765010342669,5.37724511,132.39,132.35,63.63568095]
[1765010342670,0.58,132.38,132.35,63.63568095]
[1765010342867,0.58,132.38,132.35,55.4]
[1765010343092,5.37724511,132.38,132.35,55.4]
[1765010343298,5.37724511,132.38,132.34,21.16342808]
[1765010343484,0.58,132.37,132.34,21.16342808]
[1765010343688,0.58,132.37,132.34,76.56342808]
[1765010343873,0.58,132.37,132.34,77.24342808]
[1765010344075,4.79724511,132.36,132.33,16.308864]
[1765010344417,4.79724511,132.36,132.31,35.94235315]
[1765010344418,4.79724511,132.36,132.31,21.84469574]
[1765010344579,0.58,132.35,132.31,21.84469574]
[1765010344776,0.58,132.35,132.31,38.15355974]
[1765010345607,4.79724511,132.34,132.31,16.308864]
[1765010345989,0.58,132.33,132.31,16.308864]
[1765010346283,0.58,132.33,132.29,21.84627799]
[1765010347197,0.58,132.33,132.29,21.16627799]
[1765010347198,12.93429645,132.33,132.29,21.16627799]
[1765010347404,12.93429645,132.33,132.3,16.308864]
[1765010347701,0.58,132.32,132.28,13.03688581]
[1765010348597,4.79724511,132.31,132.28,7.5596407]
[1765010348985,5.37724511,132.31,132.28,7.5596407]
[1765010351282,0.58,132.31,132.28,8.2196407]
[1765010354079,0.58,132.31,132.28,7.5596407]
[1765010354303,0.58,132.31,132.28,8.2196407]
[1765010355679,5.37724511,132.31,132.28,8.2196407]
[1765010356103,4.79724511,132.31,132.27,32.87892783]
[1765010356287,0.58,132.3,132.27,32.87892783]
[1765010356488,0.58,132.3,132.27,33.53892783]
[1765010357094,13.11724511,132.31,132.28,0.66]
[1765010357293,5.37724511,132.3,132.27,16.508864]
[1765010357504,4.79724511,132.29,132.27,16.508864]
[1765010357689,5.37724511,132.29,132.27,16.508864]
[1765010358018,5.37724511,132.28,132.27,0.2]
[1765010360095,15.90005716,132.3,132.27,0.2]
[1765010360397,4.79724511,132.33,132.28,13.60719003]
[1765010360596,22.11858693,132.34,132.29,4.79724511]
[1765010360801,22.11858693,132.34,132.31,4.79724511]
[1765010360802,8.42134182,132.34,132.31,4.79724511]
[1765010361017,13.11724511,132.35,132.31,4.79724511]
[1765010361218,13.11724511,132.35,132.32,0.66]
[1765010361426,13.69724511,132.35,132.32,0.66]
[1765010361722,13.69724511,132.35,132.31,5.45724511]
[1765010361898,21.2529735,132.35,132.31,5.45724511]
[1765010362605,12.9329735,132.35,132.31,13.0150428]
[1765010362804,5.37724511,132.35,132.31,7.55779769]
[1765010363011,5.37724511,132.35,132.31,8.21779769]
[1765010363308,13.69724511,132.35,132.31,13.0150428]
[1765010363501,0.58,132.34,132.3,8.21842707]
[1765010363847,5.37724511,132.34,132.29,21.82616083]
[1765010364028,0.58,132.33,132.29,21.82616083]
[1765010364522,5.37724511,132.33,132.29,5.45724511]
[1765010364711,5.37724511,132.33,132.28,29.32565712]
[1765010364712,4.79724511,132.32,132.28,29.32565712]
[1765010364914,5.37724511,132.32,132.28,29.32565712]
[1765010365221,13.69724511,132.32,132.28,24.52841201]
[1765010365738,21.25497117,132.32,132.28,24.52841201]
[1765010366631,16.45772606,132.32,132.28,24.52841201]
[1765010366804,8.32,132.32,132.29,0.66]
[1765010367219,0.58,132.33,132.29,5.45724511]
[1765010367405,4.79724511,132.35,132.3,0.66]
[1765010367603,8.32,132.34,132.3,5.45724511]
[1765010367823,8.32,132.34,132.31,0.66]
[1765010368219,8.9,132.34,132.31,0.66]
[1765010369119,0.58,132.34,132.31,8.21793023]
[1765010369328,8.32,132.34,132.31,8.21793023]
[1765010369508,8.32,132.34,132.31,0.66]
[1765010370020,8.32,132.34,132.31,13.01514742]
[1765010371637,8.9,132.34,132.3,12.35572311]
[1765010371938,8.9,132.34,132.3,13.01572311]
[1765010372114,20.6736777,132.34,132.3,8.218478]
[1765010372440,4.79724511,132.31,132.27,4.99724511]
[1765010372734,13.11724511,132.31,132.27,5.65724511]
[1765010372941,13.69724511,132.31,132.27,5.65724511]
[1765010373312,13.69724511,132.31,132.27,0.2]
[1765010373518,13.69724511,132.31,132.28,0.66]
[1765010374614,21.25533449,132.31,132.27,0.86]
[1765010375824,21.25533449,132.31,132.27,0.2]
[1765010376026,21.25533449,132.31,132.28,0.66]
[1765010376221,21.25533449,132.31,132.27,0.2]
[1765010376431,4.79724511,132.28,132.27,0.2]
[1765010376735,13.11724511,132.28,132.27,0.2]
[1765010377241,8.32,132.28,132.27,0.2]
[1765010377416,8.13808938,132.31,132.27,0.86]
[1765010377617,8.32,132.3,132.27,8.42027313]
[1765010377838,8.32,132.3,132.28,0.66]
[1765010378343,8.32,132.3,132.27,8.42027313]
[1765010378738,13.11724511,132.3,132.27,0.86]
[1765010379043,13.69724511,132.3,132.27,0.2]
[1765010379428,4.79724511,132.29,132.27,0.2]
[1765010379626,4.79724511,132.28,132.27,0.2]
[1765010379828,5.37724511,132.28,132.27,0.2]
[1765010380123,4.79724511,132.28,132.27,0.2]
[1765010380941,12.35651686,132.29,132.27,0.2]
[1765010381845,12.93651686,132.29,132.27,0.2]
[1765010382844,4.79724511,132.28,132.27,0.2]
[1765010383046,12.93651686,132.29,132.27,0.2]
[1765010383546,5.37724511,132.29,132.27,0.2]
[1765010383748,4.79724511,132.29,132.27,0.2]
[1765010384335,7.55870688,132.3,132.27,0.89]
[1765010384540,8.32,132.29,132.28,0.69]
[1765010384838,8.32,132.29,132.27,0.2]
[1765010385145,8.32,132.29,132.27,0.89]
[1765010386241,13.11724511,132.29,132.27,0.2]
[1765010386736,13.69724511,132.29,132.27,0.2]
[1765010387852,21.25653273,132.29,132.27,0.2]
[1765010388044,5.37724511,132.28,132.27,0.2]
[1765010388348,4.79724511,132.28,132.27,0.2]
[1765010388716,5.37724511,132.28,132.27,0.2]
[1765010391043,21.25653273,132.29,132.27,0.2]
[1765010391541,5.37724511,132.28,132.27,0.2]
[1765010391848,4.79724511,132.28,132.27,0.2]
[1765010393440,12.35696691,132.28,132.27,0.2]
[1765010393623,12.93696691,132.28,132.27,0.2]
[1765010394338,11.21450705,132.28,132.27,0.2]
[1765010397348,10.63450705,132.28,132.27,0.2]
[1765010397724,11.21450705,132.28,132.27,0.2]
[1765010398330,19.53450705,132.28,132.27,0.2]
[1765010399460,22.56240152,132.28,132.27,0.2]
[1765010400555,22.56240152,132.28,132.27,1e-08]
[1765010400556,31.37234644,132.28,132.27,1e-08]
[1765010401378,22.56240152,132.28,132.27,1e-08]
[1765010401856,16.888864,132.27,132.26,1e-08]
[1765010402154,28.28364925,132.27,132.26,1e-08]
[1765010402553,35.84394258,132.27,132.26,1e-08]
[1765010404176,35.79728102,132.27,132.26,1e-08]
[1765010404343,38.87206627,132.27,132.26,1e-08]
[1765010406441,35.79728102,132.27,132.26,1e-08]
[1765010406643,38.87206627,132.27,132.26,1e-08]
[1765010406842,35.84394258,132.27,132.26,1e-08]
[1765010408649,38.87229553,132.27,132.26,1e-08]
[1765010409847,30.55229553,132.27,132.26,1e-08]
[1765010410346,38.87229553,132.27,132.26,1e-08]
[1765010413647,47.68224045,132.27,132.26,1e-08]
[1765010413844,8.80994492,132.26,132.19,0.92]
[1765010414166,3.07478525,132.2,132.19,0.92]
[1765010414342,11.39478525,132.2,132.19,0.2]
[1765010414855,11.39478525,132.2,132.19,0.92]
[1765010417469,8.32,132.2,132.19,0.92]
[1765010417662,8.32,132.21,132.19,0.92]
[1765010417867,8.32,132.21,132.2,0.72]
[1765010418067,11.39478525,132.21,132.19,0.2]
[1765010418248,11.39478525,132.21,132.19,0.92]
[1765010419248,7.56429652,132.2,132.19,0.92]
[1765010419553,7.56429652,132.2,132.19,0.2]
[1765010420166,7.56429652,132.2,132.19,0.92]
[1765010420473,11.39478525,132.21,132.19,0.92]
[1765010420777,8.32,132.21,132.2,0.72]
[1765010420983,7.56200846,132.24,132.2,0.72]
[1765010421180,3.07478525,132.22,132.2,0.72]
[1765010422473,7.56220665,132.24,132.2,0.72]
[1765010422665,11.39478525,132.23,132.2,8.28428946]
[1765010422873,11.39478525,132.23,132.21,0.72]
[1765010423251,3.07478525,132.26,132.21,3.79478525]
[1765010423484,11.39478525,132.26,132.22,0.72]
[1765010424677,18.95569202,132.26,132.22,8.28313763]
[1765010424891,8.32,132.25,132.23,0.72]
[1765010428983,8.32,132.25,132.21,0.72]
[1765010428984,19.53667099,132.25,132.21,0.72]
[1765010429281,3.07478525,132.23,132.2,0.72]
[1765010429457,8.32,132.22,132.2,0.72]
[1765010432398,15.88330008,132.22,132.2,0.72]
[1765010432880,8.32,132.22,132.2,0.72]
[1765010433779,11.39478525,132.22,132.2,0.72]
[1765010434085,8.32,132.22,132.2,0.72]
[1765010438603,8.32,132.22,132.2,3.79478525]
[1765010438929,8.32,132.22,132.21,0.69]
[1765010439501,7.56273252,132.23,132.21,0.69]
[1765010439703,8.32,132.22,132.21,0.69]
[1765010442272,8.32,132.23,132.21,20.07364925]
[1765010442473,8.32,132.24,132.22,3.07478525]
[1765010442679,8.32,132.24,132.23,0.69]
[1765010443970,7.56029631,132.27,132.23,11.32729758]
[1765010444170,8.32,132.26,132.23,8.25251233]
[1765010444367,8.32,132.26,132.24,0.69]
[1765010445374,43.34947213,132.29,132.24,8.25198673]
[1765010445683,11.39478525,132.28,132.24,11.32677198]
[1765010445883,11.39478525,132.28,132.25,0.69]
[1765010446280,43.83223304,132.29,132.25,0.69]
[1765010446481,26.94336904,132.29,132.25,11.32611278]
[1765010446684,8.32,132.28,132.25,11.32611278]
[1765010446884,8.32,132.28,132.26,0.69]
[1765010447990,3.07478525,132.3,132.26,11.32555344]
[1765010448201,8.32,132.29,132.26,11.32555344]
[1765010448402,8.32,132.29,132.27,3.76478525]
[1765010448782,8.32,132.29,132.28,0.69]
[1765010449193,10.63319903,132.31,132.28,0.69]
[1765010449377,8.32,132.3,132.28,0.69]
[1765010450104,8.32,132.3,132.28,3.76478525]
[1765010450489,8.32,132.3,132.29,0.71]
[1765010451387,18.19253336,132.33,132.29,3.78478525]
[1765010451584,8.32,132.32,132.3,3.07478525]
[1765010451788,8.32,132.32,132.3,3.78478525]
[1765010451991,8.32,132.32,132.31,0.71]
[1765010456704,8.32,132.33,132.31,5.50955019]
[1765010457010,8.32,132.33,132.32,0.71]
[1765010457701,8.32,132.33,132.31,0.71]
[1765010458988,8.32,132.33,132.31,5.50955019]
[1765010459394,8.32,132.33,132.32,0.71]
[1765010461485,7.55901727,132.35,132.32,5.50955019]
[1765010461793,7.55901727,132.35,132.34,4.79955019]
[1765010461988,8.32,132.36,132.34,4.79955019]
[1765010462316,8.32,132.36,132.35,0.71]
[1765010462607,15.87519488,132.36,132.34,0.71]
[1765010462982,15.87519488,132.36,132.33,21.10841419]
[1765010462983,16.45519488,132.36,132.33,17.018864]
[1765010463215,21.25474507,132.36,132.33,17.018864]
[1765010463685,20.67474507,132.36,132.33,17.018864]
[1765010463885,20.67474507,132.36,132.34,0.71]
[1765010466027,15.87519488,132.36,132.34,0.71]
[1765010472134,13.11955019,132.36,132.34,0.71]
[1765010473136,20.67471241,132.36,132.34,0.71]
[1765010474035,15.87516222,132.36,132.34,0.71]
[1765010475222,20.67471241,132.36,132.34,0.71]
[1765010478341,15.87516222,132.36,132.34,0.71]
[1765010478524,8.32,132.36,132.34,0.71]
[1765010478728,8.32,132.36,132.34,5.50955019]
[1765010479223,8.32,132.36,132.35,0.7]
[1765010484943,12.35432078,132.37,132.35,0.7]
[1765010485154,8.32,132.36,132.35,0.7]
[1765010489353,21.25489418,132.36,132.32,0.7]
[1765010489652,4.79955019,132.34,132.31,0.7]
[1765010489840,4.79955019,132.34,132.3,4.79955019]
[1765010489841,8.32,132.33,132.32,0.7]
[1765010490145,13.11955019,132.33,132.3,0.7]
[1765010490324,13.11955019,132.33,132.31,0.7]
[1765010491328,5.37955019,132.32,132.28,5.49955019]
[1765010491530,4.79955019,132.3,132.27,0.7]
[1765010491735,8.32,132.29,132.27,0.7]
[1765010492331,8.32,132.29,132.25,12.36081157]
[1765010492524,4.79955019,132.28,132.25,0.7]
[1765010492725,8.32,132.27,132.26,0.7]
[1765010493124,8.32,132.28,132.26,0.7]
[1765010493332,8.32,132.28,132.26,5.49955019]
[1765010493530,8.32,132.28,132.26,13.06010863]
[1765010493747,8.32,132.28,132.27,0.7]
[1765010494119,8.32,132.29,132.27,0.7]
[1765010494548,29.24601732,132.32,132.27,5.49955019]
[1765010494846,8.32,132.31,132.28,4.79955019]
[1765010495151,8.32,132.31,132.28,5.49955019]
[1765010495348,8.32,132.31,132.29,0.7]
[1765010495648,13.11955019,132.31,132.29,0.7]
[1765010496048,20.6776289,132.31,132.29,0.7]
[1765010496944,8.32,132.31,132.29,0.7]
[1765010498854,8.32,132.31,132.29,8.2591352]
[1765010499348,4.79955019,132.33,132.3,0.67]
[1765010499548,8.32,132.33,132.3,5.46955019]
[1765010499730,8.32,132.33,132.31,0.67]
[1765010500954,4.79955019,132.35,132.31,13.02746634]
[1765010501140,8.32,132.34,132.32,0.67]
[1765010501342,4.79955019,132.35,132.32,0.67]
[1765010501530,8.32,132.34,132.32,5.46955019]
[1765010502146,8.32,132.34,132.33,0.67]
[1765010510551,21.25427828,132.37,132.33,13.02627348]
[1765010510755,8.32,132.36,132.33,13.02627348]
[1765010511052,8.32,132.36,132.34,0.71]
[1765010512164,4.79955019,132.38,132.34,13.06561673]
[1765010512364,8.32,132.37,132.34,13.06561673]
[1765010512660,8.32,132.37,132.35,0.71]
[1765010512842,8.32,132.37,132.34,7.55606654]
[1765010512843,13.11955019,132.37,132.34,7.55606654]
[1765010513043,13.11955019,132.37,132.35,0.71]
[1765010513345,8.32,132.37,132.35,0.71]
[1765010515368,8.32,132.37,132.35,8.26571424]
[1765010515661,8.32,132.37,132.36,0.71]
[1765010517242,8.32,132.37,132.35,3.06949145]
[1765010517243,8.32,132.37,132.35,3.77949145]
[1765010517663,8.32,132.37,132.36,0.71]
[1765010517871,8.32,132.37,132.35,0.71]
[1765010521241,10.62299154,132.39,132.35,11.33519534]
[1765010521490,8.32,132.38,132.35,11.33519534]
[1765010521766,8.32,132.38,132.36,0.71]
[1765010523472,11.38949145,132.38,132.36,0.71]
[1765010523785,0.58,132.37,132.34,0.71]
[1765010524072,3.64949145,132.37,132.34,0.71]
[1765010524254,3.06949145,132.37,132.34,0.71]
[1765010525851,3.64949145,132.37,132.34,0.71]
[1765010526388,18.94355916,132.38,132.34,11.33569448]
[1765010526748,18.94355916,132.38,132.35,0.71]
[1765010531383,19.52355916,132.38,132.35,0.71]
[1765010531578,3.06949145,132.37,132.35,0.71]
[1765010532085,3.06949145,132.37,132.33,10.62615722]
[1765010532378,18.94355916,132.38,132.36,0.66]
[1765010534476,18.94355916,132.38,132.34,7.55611597]
[1765010534686,18.94355916,132.38,132.35,0.66]
[1765010535981,19.52355916,132.38,132.35,0.66]
[1765010538683,10.62355916,132.38,132.35,0.66]
[1765010538873,8.32,132.37,132.35,0.66]
[1765010556796,15.10948331,132.4,132.35,8.21554973]
[1765010557008,0.1,132.41,132.35,8.21554973]
[1765010557009,0.1,132.41,132.36,11.87943637]
[1765010557295,8.32,132.4,132.37,3.72949145]
[1765010557688,8.32,132.4,132.38,0.66]
[1765010558284,3.64949145,132.39,132.36,0.66]
[1765010558486,3.64949145,132.39,132.36,16.968864]
[1765010558898,11.38949145,132.38,132.37,0.65]
[1765010559300,8.32,132.38,132.37,0.65]
[1765010559474,11.38949145,132.38,132.37,0.65]
[1765010560407,8.32,132.38,132.37,0.65]
[1765010561000,8.32,132.38,132.36,16.958864]
[1765010561301,8.32,132.38,132.35,7.55565091]
[1765010561498,8.32,132.38,132.37,0.65]
[1765010562099,8.32,132.38,132.36,0.65]
[1765010564905,15.87409241,132.38,132.34,10.62561579]
[1765010565126,15.87409241,132.38,132.34,0.65]
[1765010565127,0.58,132.37,132.34,0.65]
[1765010565827,19.52358386,132.38,132.34,0.65]
[1765010566483,10.62427115,132.37,132.34,0.65]
[1765010566694,3.06949145,132.36,132.33,16.958864]
[1765010566908,3.06949145,132.36,132.32,0.65]
[1765010566909,11.38949145,132.35,132.32,0.65]
[1765010567090,11.96949145,132.35,132.32,0.65]
[1765010568982,15.87602832,132.35,132.32,0.65]
[1765010569187,18.94551977,132.35,132.32,0.65]
[1765010571010,15.87602832,132.35,132.32,0.65]
[1765010571397,15.87602832,132.35,132.32,11.27690007]
[1765010571398,8.32,132.35,132.32,11.27690007]
[1765010571800,8.32,132.35,132.33,0.71]
[1765010571999,10.62471968,132.36,132.33,0.71]
[1765010572300,8.32,132.35,132.33,0.71]
[1765010573435,8.32,132.39,132.34,3.06949145]
[1765010573592,3.64949145,132.38,132.33,11.3362346]
[1765010573794,3.64949145,132.38,132.34,0.71]
[1765010574605,7.55458185,132.37,132.34,0.71]
[1765010575509,8.13458185,132.37,132.34,0.71]
[1765010576992,8.13458185,132.37,132.33,13.06374146]
[1765010577292,8.13458185,132.37,132.34,0.71]
[1765010578216,7.55458185,132.37,132.34,0.71]
[1765010578713,8.32,132.36,132.32,37.4730655]
[1765010578895,13.69699831,132.36,132.32,37.4730655]
[1765010579088,13.69699831,132.36,132.32,0.71]
[1765010579291,4.79699831,132.35,132.32,0.71]
[1765010579498,5.37699831,132.35,132.32,0.71]
[1765010580321,4.79699831,132.35,132.32,0.71]
[1765010581119,0.58,132.34,132.3,28.6642919]
[1765010581424,13.11699831,132.33,132.28,8.80994492]
[1765010581637,4.79699831,132.32,132.29,8.26909451]
[1765010581837,8.32,132.32,132.29,13.06609282]
[1765010582001,8.32,132.32,132.3,0.71]
[1765010582631,21.25475251,132.32,132.29,0.71]
[1765010582912,5.37699831,132.31,132.28,0.71]
[1765010583096,21.25475251,132.32,132.29,0.71]
[1765010583497,0.58,132.31,132.28,0.71]
[1765010583998,20.67475251,132.32,132.28,0.71]
[1765010584200,0.58,132.31,132.28,0.71]
[1765010584817,21.25475251,132.32,132.28,0.71]
[1765010585197,20.67475251,132.32,132.28,0.71]
[1765010585414,0.58,132.31,132.28,0.71]
[1765010586013,5.37699831,132.31,132.28,0.71]
[1765010586219,20.67475251,132.32,132.28,0.71]
[1765010586416,21.25475251,132.32,132.28,0.71]
[1765010586621,21.25475251,132.32,132.28,5.50699831]
[1765010586826,21.25475251,132.32,132.29,0.71]
[1765010588814,13.11699831,132.32,132.29,0.71]
[1765010589001,12.35403021,132.33,132.29,0.71]
[1765010589202,8.32,132.32,132.29,13.06602723]
[1765010589625,8.32,132.32,132.3,0.7]
[1765010596554,0.58,132.31,132.28,0.7]
[1765010596728,5.37699831,132.31,132.28,0.7]
[1765010597031,4.79699831,132.31,132.28,0.7]
[1765010597709,12.93502293,132.31,132.28,0.7]
[1765010598127,4.79699831,132.29,132.25,12.35827862]
[1765010598333,13.69699831,132.29,132.26,0.7]
[1765010598732,13.11699831,132.29,132.26,0.7]
[1765010599634,13.11699831,132.29,132.26,8.26083139]
[1765010601036,8.32,132.29,132.26,8.26083139]
[1765010601334,8.32,132.29,132.27,0.7]
[1765010602541,17.91399662,132.32,132.27,13.057049]
[1765010602716,4.79699831,132.34,132.29,4.79699831]
[1765010603046,4.79699831,132.34,132.3,4.79699831]
[1765010603047,20.67348273,132.34,132.3,4.79699831]
[1765010603336,15.87648442,132.34,132.3,5.49699831]
[1765010603517,15.87648442,132.34,132.31,0.7]
[1765010604918,8.32,132.34,132.31,13.05495197]
[1765010605118,8.32,132.34,132.32,0.7]
[1765010605944,13.11699831,132.34,132.32,0.7]
[1765010606518,8.32,132.34,132.32,0.7]
[1765010609330,12.35288721,132.36,132.32,13.05438848]
[1765010609537,8.32,132.35,132.32,13.05438848]
[1765010609743,8.32,132.35,132.33,0.7]
[1765010610646,8.32,132.35,132.32,7.55739017]
[1765010610821,13.69699831,132.35,132.32,0.7]
[1765010611144,13.11699831,132.35,132.32,0.7]
[1765010611451,8.32,132.35,132.32,0.7]
[1765010611628,13.11699831,132.35,132.32,0.7]
[1765010611945,21.25300006,132.35,132.32,0.7]
[1765010612141,20.67300006,132.35,132.32,0.7]
[1765010612953,8.32,132.34,132.32,0.7]
[1765010613628,8.32,132.34,132.32,8.25735361]
[1765010614047,8.32,132.35,132.33,0.7]
[1765010616440,12.35218414,132.36,132.33,0.7]
[1765010616654,8.32,132.35,132.33,0.7]
[1765010617972,13.69699831,132.35,132.31,5.49699831]
[1765010618252,7.55629439,132.34,132.32,0.7]
[1765010620355,31.59031501,132.35,132.32,0.7]
[1765010620550,8.32,132.35,132.32,5.49699831]
[1765010621051,8.32,132.35,132.33,0.7]
[1765010621847,15.87580625,132.35,132.33,0.7]
[1765010625157,8.32,132.35,132.33,0.7]
[1765010625939,8.32,132.35,132.33,8.25684171]
[1765010626336,8.32,132.35,132.34,0.7]
[1765010626863,8.32,132.35,132.32,12.354253]
[1765010627046,8.32,132.35,132.33,0.7]
[1765010627247,12.35222707,132.36,132.33,0.7]
[1765010627434,8.32,132.35,132.33,0.7]
[1765010635060,8.32,132.35,132.33,13.05373564]
[1765010635451,8.32,132.35,132.34,0.66]
[1765010639368,133.82273915,132.38,132.34,11.28653784]
[1765010639369,25.75884242,132.38,132.34,11.28653784]
[1765010639579,8.32,132.37,132.34,11.28653784]
[1765010639882,8.32,132.37,132.35,0.66]
[1765010643271,8.32,132.37,132.33,10.62693464]
[1765010643450,8.32,132.37,132.35,0.66]
[1765010643773,11.39024345,132.37,132.35,0.66]
[1765010644663,8.32,132.37,132.35,0.66]
[1765010645252,11.39024345,132.37,132.35,0.66]
[1765010648563,3.07024345,132.38,132.35,8.21571621]
[1765010648770,8.32,132.36,132.35,8.21571621]
[1765010648967,8.32,132.36,132.35,7.55571621]
[1765010649400,15.6897893,132.39,132.35,7.55571621]
[1765010649558,8.3,132.38,132.36,0.7]
[1765010651079,8.88,132.38,132.35,11.32595966]
[1765010651655,8.3,132.38,132.36,0.7]
[1765010654990,8.3,132.38,132.36,8.25509554]
[1765010655460,8.3,132.38,132.37,0.7]
[1765010656588,8.3,132.38,132.36,0.7]
[1765010660093,0.58,132.37,132.33,24.56554081]
[1765010660289,0.58,132.37,132.34,0.7]
[1765010660290,3.65024345,132.37,132.34,0.7]
[1765010661369,11.20494168,132.37,132.34,0.7]
[1765010662185,3.07024345,132.36,132.34,0.7]
[1765010662686,8.3,132.35,132.34,0.7]
[1765010663673,8.3,132.35,132.31,10.62808265]
[1765010663874,11.95024345,132.35,132.32,0.7]
[1765010664095,11.37024345,132.35,132.32,0.7]
[1765010664674,18.92602013,132.35,132.32,0.7]
[1765010664872,8.3,132.35,132.32,11.32747164]
[1765010665286,8.3,132.35,132.33,0.7]
[1765010667788,7.55519002,132.36,132.33,3.77024345]
[1765010667993,8.3,132.35,132.33,3.77024345]
[1765010668291,8.3,132.35,132.34,0.7]
[1765010669307,8.3,132.37,132.34,3.77024345]
[1765010669489,8.3,132.36,132.35,3.07024345]
[1765010669788,8.3,132.37,132.35,3.77024345]
[1765010669991,8.3,132.38,132.36,0.7]
[1765010670992,15.85404267,132.38,132.36,0.7]
[1765010671195,16.43404267,132.38,132.35,0.7]
[1765010671496,19.50428612,132.38,132.35,0.7]
[1765010676208,3.07024345,132.37,132.35,0.7]
[1765010676515,3.65024345,132.37,132.34,8.25628826]
[1765010677003,3.07024345,132.37,132.35,0.7]
[1765010678717,10.62496321,132.37,132.33,16.308864]
[1765010678896,11.20496321,132.37,132.34,0.68]
[1765010679621,3.65024345,132.36,132.33,0.68]
[1765010680431,8.3,132.35,132.33,0.68]
[1765010691933,11.37024345,132.35,132.33,0.68]
[1765010693425,8.3,132.35,132.33,0.68]
[1765010701642,0.58,132.34,132.32,16.308864]
[1765010701843,5.37820595,132.34,132.32,16.308864]
[1765010702032,5.37820595,132.34,132.31,0.72]
[1765010702228,4.79820595,132.34,132.31,8.27797911]
[1765010702548,8.3,132.35,132.32,12.35559366]
[1765010702748,8.3,132.35,132.32,13.07559366]
[1765010702952,8.3,132.35,132.33,0.72]
[1765010704247,8.3,132.35,132.33,8.27664913]
[1765010704543,111.3,132.38,132.34,4.79820595]
[1765010704737,8.3,132.38,132.35,4.79820595]
[1765010704933,8.3,132.38,132.35,5.51820595]
[1765010705134,8.3,132.38,132.36,0.72]
[1765010706138,5.37820595,132.37,132.34,0.72]
[1765010706535,12.3540128,132.37,132.33,21.10706995]
[1765010706834,13.67820595,132.36,132.33,16.308864]
[1765010707037,8.88,132.36,132.31,4.79820595]
[1765010707239,5.37820595,132.35,132.32,0.72]
[1765010707639,4.79820595,132.35,132.32,0.72]
[1765010709147,5.37820595,132.35,132.32,0.72]
[1765010709676,8.88,132.34,132.3,24.57728778]
[1765010709853,13.67820595,132.34,132.3,17.018864]
[1765010710044,8.13686541,132.33,132.3,17.018864]
[1765010710366,7.55686541,132.33,132.3,17.018864]
[1765010710568,21.23465235,132.34,132.3,17.018864]
[1765010710744,21.23465235,132.34,132.31,0.71]
[1765010712060,20.65465235,132.34,132.3,23.86740167]
[1765010712263,0.58,132.33,132.3,17.018864]
[1765010712560,8.13694838,132.33,132.3,17.018864]
[1765010712764,12.93515433,132.33,132.29,5.50820595]
[1765010713067,0.58,132.32,132.29,0.71]
[1765010713272,12.93515433,132.33,132.3,0.71]